Cogmind - Beta 14 @@@ ROGUE MODE // 2024.12.05 @ 19:24:04 Player: Tereza Result: Destroyed by P7-M4J(z) with Makeshift Spear Performance ------------- Evolutions (3) 1500 Regions Visited (13) 2600 Robots Destroyed (223) 1115 Value Destroyed (8397) 8397 Prototype IDs (31) 620 Alien Tech Used (0) 0 Bonus (2371) 2371 TOTAL SCORE: 16603 Bonus ------- High Alert Combat Kills 1299 Entered Garrisons 200 Aligned with FarCom 300 Met Imprinter 300 Acquired ECA 300 Friendly Fire -28 Cogmind --------- Core Integrity 0/700 Matter 31/300 Energy 25/100 System Corruption 4% Temperature Cool (0) Movement Core (50) Location -7/Zion Parts ------- > --- POWER (1) -------- (None) > --- PROPULSION (4) --- (None) > --- UTILITY (6) ------ (None) > --- WEAPON (2) ------- (None) > --- INVENTORY (5) ---- Improved Kinecellerator Latent Energy Streamer Gauss Cannon Plasma Cutter Dirty Bomb Trap Peak State ------------ > --- POWER ------------ Improved Deuterium Engine > --- PROPULSION ------- Armored Treads Armored Medium Treads Armored Medium Treads Armored Medium Treads > --- UTILITY ---------- Cooling System High-capacity Storage Unit Hardened Heavy Armor Plating Layered Light Armor Plating System Shield > --- WEAPON ----------- Gauss Rifle Gauss Cannon > --- INVENTORY -------- Improved Deuterium Engine Light Angular Momentum Engine Armored Treads Armored Treads Armored Medium Treads High-capacity Matter Pod Encrypted Comm Array Improved Kinecellerator Hardened Medium Armor Plating Latent Energy Streamer Heavy Ion Cannon Gauss Rifle Hypervelocity Gauss Cannon Improved Grenade Launcher Improved Grenade Launcher Heavy Rocket Launcher Heavy Rocket Launcher Plasma Cutter Dirty Bomb Trap Fire Trap [Rating: 58] Favorites ----------- Power Improved Ion Engine Engine Improved Ion Engine Power Core Micro Nuclear Core Propulsion Armored Medium Treads Treads Armored Medium Treads Utility Large Storage Unit Device Cooling System Storage Large Storage Unit Processor Improved Signal Interpreter Hackware Hacking Suite Protection Improved Medium Armor Plating Weapon Autogun Energy Gun Spread Laser Energy Cannon Heavy Ion Cannon Ballistic Gun Autogun Ballistic Cannon Mass Driver Launcher Heavy Rocket Launcher Special Weapon Plasma Cutter Build | -11 -10 -10 -9 -9 -9 -8 -8 -8 -8 -7 -7 -7 -7 ------- Run | Yrd Mat Min Mat Min Exi Min Mat Gar Mat Fac Low Low Zio Slots Evolved 6 | . . . 2 . . . 2 . . 2 . . . Power . | . . . . . . . . . . . . . . Propulsion 2 | . . . . . . . 1 . . 1 . . . Utility 4 | . . . 2 . . . 1 . . 1 . . . Weapon . | . . . . . . . . . . . . . . Parts Attached 159 | 6 12 . 14 1 1 2 8 23 15 42 7 8 20 Power 14 | 1 3 . . . . . . 2 2 3 . . 3 Engine 11 | 1 3 . . . . . . 1 1 2 . . 3 Core 3 | . . . . . . . . 1 1 1 . . . Reactor . | . . . . . . . . . . . . . . Propulsion 46 | 2 2 . 4 1 1 . 3 6 6 12 2 1 6 Treads 46 | 2 2 . 4 1 1 . 3 6 6 12 2 1 6 Leg . | . . . . . . . . . . . . . . Wheel . | . . . . . . . . . . . . . . Hover . | . . . . . . . . . . . . . . Flight . | . . . . . . . . . . . . . . Utility 42 | 1 3 . 6 . . 2 4 4 5 11 1 4 1 Device 13 | . 1 . . . . . 1 3 2 3 1 1 1 Storage 5 | 1 2 . . . . . . . 1 1 . . . Processor 2 | . . . . . . 1 . . . 1 . . . Hackware 2 | . . . 1 . . . . . . 1 . . . Protection 20 | . . . 5 . . 1 3 1 2 5 . 3 . Artifact . | . . . . . . . . . . . . . . Weapon 57 | 2 4 . 4 . . . 1 11 2 16 4 3 10 Energy Gun 4 | 1 2 . 1 . . . . . . . . . . Energy Cannon 5 | . . . . . . . . 1 . 2 . . 2 Ballistic Gun 22 | 1 2 . 3 . . . 1 3 . 6 2 2 2 Ballistic Cannon 8 | . . . . . . . . 4 1 2 . . 1 Launcher 17 | . . . . . . . . 3 1 6 2 1 4 Special Weapon 1 | . . . . . . . . . . . . . 1 Impact Weapon . | . . . . . . . . . . . . . . Slashing Weapon . | . . . . . . . . . . . . . . Piercing Weapon . | . . . . . . . . . . . . . . Special Melee Weapon . | . . . . . . . . . . . . . . Unidentified Prototypes . | . . . . . . . . . . . . . . Parts Lost 42 | . . . 5 . . . 4 6 . 9 1 2 15 Power 6 | . . . . . . . . 1 . 1 . . 4 Propulsion 9 | . . . 1 . . . 1 2 . 1 1 . 3 Utility 21 | . . . 3 . . . 3 3 . 6 . 1 5 Weapon 6 | . . . 1 . . . . . . 1 . 1 3 Highest Loss Streak 8 | . . . 1 . . . 2 1 . 4 1 2 8 To Critical Strikes 1 | . . . . . . . . . . . . . 1 Average Slot Usage (%) 92 | . 90 100 91 100 100 100 93 95 96 95 91 92 79 Engine 6 | . 14 14 11 11 11 11 9 4 3 2 7 7 6 Core 1 | . . . . . . . . 4 5 4 . . . Treads 27 | . 27 28 22 22 22 22 27 26 27 29 29 30 27 Device 9 | . 5 14 5 . . . 1 17 12 6 15 14 18 Storage 9 | . 14 14 11 11 11 11 9 9 9 7 7 7 6 Processor 1 | . . . . . . 9 1 . . 2 . . . Hackware 7 | . . . 8 11 11 11 9 9 9 9 7 7 6 Protection 9 | . . . 11 22 22 12 17 6 10 13 7 7 5 Energy Gun 2 | . 13 14 9 . . . . . . . . . . Ballistic Gun 9 | . 13 14 12 22 22 22 18 11 5 5 6 6 . Ballistic Cannon 3 | . . . . . . . . 6 12 6 7 7 . Peak Build Rating 58 | 6 12 12 18 18 19 21 27 38 47 57 56 58 54 Average Rating 35 | 4 9 12 15 18 18 20 22 32 40 53 55 54 44 On Entrance 26 | . 6 12 12 18 18 19 21 27 34 44 55 55 51 Naked Turns 2 | . . . . . . . . . . . . . 2 Heaviest Build 87 | 14 34 34 41 41 41 41 58 63 57 85 86 87 74 Greatest Support 109 | 40 40 40 43 43 43 43 63 67 69 109 109 101 101 Greatest Overweight (x) 2 | . 1 . 1 . . . . 1 1 . . . 2 Average Overweight (x) . | . . . . . . . . . . . . . . Largest Inventory Capacity 20 | 8 15 15 15 15 15 15 15 15 15 20 20 20 20 Average Capacity 16 | 7 12 15 15 15 15 15 15 15 15 17 20 20 19 Most Carried 20 | 6 15 15 15 15 15 15 15 15 15 20 20 20 20 Average Carried 15 | 4 11 15 14 15 14 15 14 14 14 16 19 19 19 Final Capacity 20 | 8 15 15 15 15 15 15 15 15 15 20 20 20 5 Final Carried 19 | 6 15 15 15 15 15 15 14 15 15 18 19 18 5 Class Distribution -------------------- 65% | Mutant 26% | Scavenger-Mutant 8% | Hacker-Mutant Dominant Class ---------------- Mutant | -10/Materials Mutant | -10/Mines Mutant | -9/Materials Scavenger-Mutant | -9/Mines Scavenger-Mutant | -9/Exiles Mutant | -8/Mines Scavenger-Mutant | -8/Materials Scavenger-Mutant | -8/Garrison Scavenger-Mutant | -8/Materials Mutant | -7/Factory Mutant | -7/Lower Caves Mutant | -7/Lower Caves Mutant | -7/Zion Resources | -11 -10 -10 -9 -9 -9 -8 -8 -8 -8 -7 -7 -7 -7 ----------- Run | Yrd Mat Min Mat Min Exi Min Mat Gar Mat Fac Low Low Zio Matter Collected 6514 | 224 350 . 464 48 . 72 445 1179 361 2075 426 289 581 Remotely . | . . . . . . . . . . . . . . Salvage Created 7061 | . 760 . 1127 143 . 58 513 1129 411 2119 317 147 337 Parts 433 | . 43 . 96 10 . 1 25 61 17 117 14 5 44 Haulers Intercepted 4 | . 1 . 2 . . . . . . 1 . . . Recyclers Shooed 12 | . 2 . 1 . . . 4 . 2 3 . . . Parts Field Recycled . | . . . . . . . . . . . . . . Retrieved Matter . | . . . . . . . . . . . . . . Parts Self-Destructed 16 | . . . . . . . . . . . 11 5 . Prevented 1 | . . . . . . . . . . . . 1 . Kills | -11 -10 -10 -9 -9 -9 -8 -8 -8 -8 -7 -7 -7 -7 ------- Run | Yrd Mat Min Mat Min Exi Min Mat Gar Mat Fac Low Low Zio Combat Hostiles Destroyed 171 | . 12 . 30 3 . 1 15 32 8 52 10 5 3 Guns 92 | . 11 . 30 3 . 1 15 16 1 12 1 2 . Cannons 37 | . . . . . . . . 7 4 20 3 2 1 AOE 39 | . . . . . . . . 9 3 18 6 1 2 Classes Destroyed 19 | . 5 . 6 1 . 1 . 2 1 1 . . 2 Worker 5 | . 1 . 2 . . . . . . 2 . . . Builder 8 | . . . 1 . . . 1 . . 6 . . . Tunneler 1 | . . . . . . . . . . 1 . . . Hauler 4 | . 1 . 2 . . . . . . 1 . . . Recycler 6 | . 2 . . . . . . . 2 2 . . . Mechanic 2 | . . . 1 . . . . . . 1 . . . Operator 6 | . . . 5 . . . . . . 1 . . . Watcher 9 | . 2 . 3 . . . . 2 1 1 . . . Swarmer 20 | . . . 10 . . . 4 3 . . 3 . . Grunt 98 | . 12 . 10 2 . . 8 22 5 32 7 . . Brawler 7 | . . . . 1 . . . . 2 3 . 1 . Duelist 5 | . . . 1 . . . . . . 3 . 1 . Protector 2 | . . . . . . . . . 1 1 . . . Sentry 21 | . . . 9 . . . 1 5 . 5 . 1 . Hunter 6 | . . . . . . 1 2 . . 2 . 1 . Programmer 8 | . . . . . . . . 1 . 6 . 1 . Behemoth 1 | . . . . . . . . 1 . . . . . Zionite 28 | . . . . . . . . . . . . . 28 Butcher 1 | . . . . . . . . . . . . . 1 Mutant 1 | . . . . . . . . . . . . . 1 Best Kill Streak 14 | . 4 . 6 3 . 1 5 9 5 12 4 3 14 Combat Bots Only 11 | . 3 . 5 3 . 1 5 9 5 11 4 3 1 Max Kills in Single Turn 5 | . 2 . 2 1 . 1 1 2 3 5 2 1 3 Gunslinging 1 | . . . 1 . . . . . . . . . . Exploded 4 | . . . . . . . . 2 3 4 2 1 1 Melee . | . . . . . . . . . . . . . . Uniques/NPCs Destroyed 1 | . . . . . . . . . . . . . 1 Imprinter (-7/Zion) Combat | -11 -10 -10 -9 -9 -9 -8 -8 -8 -8 -7 -7 -7 -7 -------- Run | Yrd Mat Min Mat Min Exi Min Mat Gar Mat Fac Low Low Zio Hostile Shots Fired 1262 | . 35 . 99 8 . 8 104 155 18 524 30 118 163 Missed 444 | . 14 . 33 4 . 2 37 46 8 171 12 45 72 Damage Taken 11631 | . 287 . 959 45 . 89 842 1524 168 4470 371 790 2086 Core 1126 | . 15 . 185 . . 27 28 132 17 309 16 28 369 Absorbed by Shields 524 | . . . . . . . 70 394 . . . . 60 Redirected to Shielding 51 | . . . . . . . 13 38 . . . . . Ignored by Resistances 85 | . . . . . . . 19 66 . . . . . Core Remaining (%) 77 | 100 . 94 . . . 47 . . 67 . . . . Volleys Fired 551 | . 53 . 90 4 . 6 49 94 20 143 12 20 60 Largest 2 | . 2 . 2 2 . 2 2 2 2 2 2 2 2 Hottest 126 | . 88 . 88 46 . 46 48 90 101 105 84 84 126 Shots Fired 1040 | . 98 . 168 8 . 12 98 174 40 279 24 42 97 Gun 672 | . 98 . 168 8 . 12 98 109 15 111 6 16 31 Cannon 290 | . . . . . . . . 53 23 145 12 22 35 Launcher 76 | . . . . . . . . 12 2 23 6 4 29 Special 2 | . . . . . . . . . . . . . 2 Kinetic 769 | . 52 . 93 8 . 12 98 161 38 218 18 38 33 Thermal 174 | . 26 . 75 . . . . . . 38 . . 35 Explosive 76 | . . . . . . . . 12 2 23 6 4 29 Electromagnetic 21 | . 20 . . . . . . 1 . . . . . Robot Hit Streak 22 | . 11 . 13 10 . 22 15 12 5 17 17 5 9 Robot Miss Streak 10 | . 10 . 10 . . . 5 4 5 7 2 3 5 Penetration Max 1 | . . . . . . . . . 1 1 . . . Secondary Targets 6 | . 1 . 2 2 . . . 1 . . . . . Max Gunslinging Chain 1 | . 1 . 1 1 . . . 1 . . . . . Shots Hit Robots 703 | . 66 . 123 7 . 12 71 106 23 200 16 25 54 Core Hits 519 | . 46 . 117 5 . 3 39 71 21 155 15 10 37 Critical Kills 3 | . . . . . . . . 1 . 2 . . . Critical Parts Destroyed 5 | . . . . . . 1 1 1 . 1 . . 1 Critical Strikes 14 | . . . . . . 1 1 4 1 6 . . 1 Meltdown 2 | . . . . . . . . . . 2 . . . Destroy 6 | . . . . . . 1 1 2 . 1 . . 1 Blast 6 | . . . . . . . . 2 1 3 . . . Melee Attacks . | . . . . . . . . . . . . . . Impact . | . . . . . . . . . . . . . . Slashing . | . . . . . . . . . . . . . . Piercing . | . . . . . . . . . . . . . . Sneak Attacks . | . . . . . . . . . . . . . . Combat Hostiles . | . . . . . . . . . . . . . . Follow-up Attacks . | . . . . . . . . . . . . . . Damage Inflicted 21613 | . 1043 . 2045 107 . 132 1272 3266 1013 7930 1003 911 2891 Guns 7929 | . 888 . 1751 107 . 132 1272 1376 129 1658 91 147 378 Cannons 5831 | . . . . . . . . 789 561 3323 157 456 545 Explosions 7821 | . 155 . 273 . . . . 1101 323 2938 755 308 1968 Melee . | . . . . . . . . . . . . . . Ramming 32 | . . . 21 . . . . . . 11 . . . Kinetic 11042 | . 402 . 835 107 . 132 1272 2159 690 4187 248 603 407 Thermal 2892 | . 264 . 1130 . . . . . . 982 . . 516 Explosive 7229 | . 155 . 59 . . . . 1023 323 2638 755 308 1968 Electromagnetic 418 | . 222 . . . . . . 84 . 112 . . . Impact . | . . . . . . . . . . . . . . Slashing . | . . . . . . . . . . . . . . Piercing . | . . . . . . . . . . . . . . Highest Corruption 14 | . 2 2 . . . . 2 5 5 14 10 11 11 Average Corruption 5 | . 2 2 . . . . 1 3 5 6 10 10 6 Corruption Purged 4 | . . . . . . . . . . 4 . . . Corruption Blocked . | . . . . . . . . . . . . . . Effects 215 | . 21 4 . . . . 1 24 18 83 32 22 10 Message Errors 57 | . 4 2 . . . . 1 5 5 22 11 4 3 Matter Fused 55 | . 7 1 . . . . . 11 4 15 8 7 2 Heat Flow Errors 24 | . . . . . . . . 3 3 9 4 3 2 Energy Discharges 24 | . 1 1 . . . . . 1 3 12 3 2 1 Parts Rejected 6 | . 2 . . . . . . 1 . 1 1 1 . Parts Fused 1 | . . . . . . . . . 1 . . . . Data Loss (minor) 23 | . 4 . . . . . . 1 1 9 5 2 1 Data Loss (major) 4 | . . . . . . . . 1 . 2 . 1 . Misfires 12 | . 2 . . . . . . 1 . 7 . 2 . Alerts 4 | . 1 . . . . . . . 1 2 . . . Misdirections 1 | . . . . . . . . . . 1 . . . Weapon Failures 4 | . . . . . . . . . . 3 . . 1 Overload Shots . | . . . . . . . . . . . . . . Overflow Damage 511 | . 91 . 117 . . . . 31 17 135 14 39 67 Projectiles 124 | . . . . . . . . . 17 71 . 35 1 Explosions 387 | . 91 . 117 . . . . 31 . 64 14 4 66 Melee . | . . . . . . . . . . . . . . Knockbacks 49 | . . . 1 . . . . 8 9 27 3 1 . Impact 1 | . . . 1 . . . . . . . . . . Kinetic 45 | . . . . . . . . 7 9 26 2 1 . Secondary 3 | . . . . . . . . 1 . 1 1 . . Self-Inflicted Damage 976 | . . . 173 . . . . 53 . 254 56 97 343 Shots 26 | . . . 2 . . . . 2 . 9 1 3 9 Rammed 6 | . . . 3 . . . . . . 3 . . . Targets Rammed 7 | . . . 4 . . . . . . 3 . . . Kicked . | . . . . . . . . . . . . . . Crushed 1 | . . . 1 . . . . . . . . . . Highest Temperature 345 | . 286 . 345 56 . 24 94 246 236 275 230 145 273 Average Temperature 71 | . 74 . 92 33 . 11 23 37 56 79 88 68 157 Received Heat Transfer 3140 | . 156 . 267 24 . . 258 663 90 1287 117 132 146 Effects 5 | . . . 4 . . . . . . 1 . . . Energy Bleed 3 | . . . 2 . . . . . . 1 . . . Interference 2 | . . . 2 . . . . . . . . . . Siege Activations . | . . . . . . . . . . . . . . Robots Corrupted 1 | . 1 . . . . . . . . . . . . Combat Hostiles 1 | . 1 . . . . . . . . . . . . Parts Fried 2 | . 2 . . . . . . . . . . . . Impact Corruptions . | . . . . . . . . . . . . . . Robots Melted 2 | . . . . . . . . . . 2 . . . Combat Hostiles 2 | . . . . . . . . . . 2 . . . Parts Melted 4 | . . . 1 . . . . . . 3 . . . Heat Transferred 3538 | . 335 . 1300 . . . . . . 1200 . . 703 Parts Sabotaged . | . . . . . . . . . . . . . . Parts Stolen . | . . . . . . . . . . . . . . Parts Stripped . | . . . . . . . . . . . . . . Power Chain Reactions . | . . . . . . . . . . . . . . Latent Energy Used 200 | . . . . . . . . 200 . . . . . LE Corruption 3 | . . . . . . . . 3 . . . . . Alert | -11 -10 -10 -9 -9 -9 -8 -8 -8 -8 -7 -7 -7 -7 ------- Run | Yrd Mat Min Mat Min Exi Min Mat Gar Mat Fac Low Low Zio Peak Influence 1376 | . 219 33 428 233 . 45 339 1218 705 1376 . . . Initial 593 | . . 33 12 163 . . 17 80 593 298 . . . Average 380 | . 90 33 199 227 . 31 146 610 619 526 . . . Maximum Alert Level 4 | . 1 . 2 1 . . 1 4 3 4 . . . Low Security (%) 35 | 100 93 100 50 8 . 100 63 7 . 12 . . . Level 1 23 | . 6 . 43 91 . . 36 13 . 27 . . . Level 2 30 | . . . 5 . . . . 46 99 44 . . . Level 3 7 | . . . . . . . . 25 . 10 . . . Level 4 2 | . . . . . . . . 7 . 4 . . . Level 5 . | . . . . . . . . . . . . . . High Security . | . . . . . . . . . . . . . . Max Security . | . . . . . . . . . . . . . . Squads Dispatched 35 | . 1 . 7 . . . 4 . 2 21 . . . Investigation 10 | . 1 . 3 . . . 1 . . 5 . . . Extermination 6 | . . . . . . . . . . 6 . . . Reinforcement 10 | . . . 4 . . . 1 . 1 4 . . . Assault 3 | . . . . . . . . . 1 2 . . . Garrison 6 | . . . . . . . 2 . . 4 . . . Intercept . | . . . . . . . . . . . . . . Searches Triggered . | . . . . . . . . . . . . . . Construction Impeded 2 | . . . . . . . . . . 2 . . . Haulers Reinforced . | . . . . . . . . . . . . . . Active Scanning Responses . | . . . . . . . . . . . . . . Cargo Convoy Interrupts . | . . . . . . . . . . . . . . Stealth | -11 -10 -10 -9 -9 -9 -8 -8 -8 -8 -7 -7 -7 -7 --------- Run | Yrd Mat Min Mat Min Exi Min Mat Gar Mat Fac Low Low Zio Distress Signals 11 | . 1 . 4 . . . 3 . 1 2 . . . Communications Jammed . | . . . . . . . . . . . . . . Distress Signals . | . . . . . . . . . . . . . . Times Spotted 253 | . 20 . 45 3 . 1 21 32 12 66 11 5 37 Peak Tracking Total 7 | . 3 . 6 3 . 1 7 6 6 7 4 3 6 Tactical Retreats 14 | . 1 . 2 . . . 1 . 3 6 1 . . Traps | -11 -10 -10 -9 -9 -9 -8 -8 -8 -8 -7 -7 -7 -7 ------- Run | Yrd Mat Min Mat Min Exi Min Mat Gar Mat Fac Low Low Zio Traps Triggered 12 | . 3 . 2 . . . . 3 1 3 . . . Indirectly 1 | . . . . . . . . 1 . . . . . Trap Hack Attempts . | . . . . . . . . . . . . . . Triggered . | . . . . . . . . . . . . . . Disarmed . | . . . . . . . . . . . . . . Reprogrammed . | . . . . . . . . . . . . . . Reused 1 | . . . . . . . . . . . . . 1 Traps Extracted . | . . . . . . . . . . . . . . Installed 1 | . . . . . . . . . . . . . 1 Triggered 2 | . . . . . . . . . . . . 2 . Most Traps Carried 2 | . . . . . . . . . . . 2 2 2 Machines | -11 -10 -10 -9 -9 -9 -8 -8 -8 -8 -7 -7 -7 -7 ---------- Run | Yrd Mat Min Mat Min Exi Min Mat Gar Mat Fac Low Low Zio Machines Disabled 25 | . 4 . 5 . . . . 6 . 9 . . 1 Max in Single Turn 3 | . 2 . 3 . . . . 1 . 2 . . 1 Garrison Access 1 | . . . . . . . . . . 1 . . . Garrison Relay 4 | . . . . . . . . 4 . . . . . Machines Repaired . | . . . . . . . . . . . . . . Machines Dismantled . | . . . . . . . . . . . . . . Machines Sabotaged . | . . . . . . . . . . . . . . Overloaded Fab Kills . | . . . . . . . . . . . . . . Hacking | -11 -10 -10 -9 -9 -9 -8 -8 -8 -8 -7 -7 -7 -7 --------- Run | Yrd Mat Min Mat Min Exi Min Mat Gar Mat Fac Low Low Zio Machines Accessed 30 | . 3 . 6 . 2 . 5 3 2 7 1 . 1 Terminals 20 | . 3 . 6 . . . 4 3 1 3 . . . Fabricators 2 | . . . . . . . . . . 2 . . . Repair Stations . | . . . . . . . . . . . . . . Recycling Units . | . . . . . . . . . . . . . . Scanalyzers 1 | . . . . . . . . . 1 . . . . Garrison Access 3 | . . . . . . . 1 . . 2 . . . Total Hacks 73 | . 7 . 14 . 5 . 14 7 4 19 1 . 2 Successful 38 | . 3 . 8 . 5 . 8 2 3 6 1 . 2 Failed 34 | . 3 . 6 . . . 6 5 1 13 . . . Catastrophic 12 | . 1 . 1 . . . 2 3 . 5 . . . Database Lockouts 1 | . 1 . . . . . . . . . . . . Manual 26 | . 4 . 8 . 1 . 5 1 . 7 . . . Terminals 49 | . 7 . 14 . . . 12 7 2 7 . . . Fabricators 6 | . . . . . . . . . . 6 . . . Repair Stations . | . . . . . . . . . . . . . . Recycling Units . | . . . . . . . . . . . . . . Scanalyzers 2 | . . . . . . . . . 2 . . . . Garrison Access 8 | . . . . . . . 2 . . 6 . . . Terminal Hacks 30 | . 3 . 8 . 5 . 7 2 1 1 1 . 2 Record 4 | . . . . . 4 . . . . . . . . Part Schematic 2 | . . . . . . . . . . . . . 2 Robot Analysis 5 | . 2 . 1 . . . 2 . . . . . . Prototype ID Bank 5 | . 1 . 2 . . . 1 . 1 . . . . Open Door 1 | . . . . . . . . . . . 1 . . Branch Access Points 1 | . . . 1 . . . . . . . . . . Emergency Access Points 1 | . . . . . . . . 1 . . . . . Alert Level 5 | . . . 2 . . . 2 . . 1 . . . Unreport Threat 3 | . . . 2 . . . 1 . . . . . . Locate Traps 1 | . . . . . . . 1 . . . . . . Patrol Navigation 1 | . . . . . . . . 1 . . . . . Derelict Proto ID Bank 1 | . . . . . 1 . . . . . . . . Fabricator Hacks 4 | . . . . . . . . . . 4 . . . Load Schematic 2 | . . . . . . . . . . 2 . . . Build 2 | . . . . . . . . . . 2 . . . Repair Station Hacks . | . . . . . . . . . . . . . . Recycling Unit Hacks . | . . . . . . . . . . . . . . Scanalyzer 2 | . . . . . . . . . 2 . . . . Insert Component 1 | . . . . . . . . . 1 . . . . Analyze 1 | . . . . . . . . . 1 . . . . Garrison Access Hacks 2 | . . . . . . . 1 . . 1 . . . Unlock Access 1 | . . . . . . . 1 . . . . . . Seal Access 1 | . . . . . . . . . . 1 . . . Unauthorized Hacks . | . . . . . . . . . . . . . . Terminals . | . . . . . . . . . . . . . . Fabricators . | . . . . . . . . . . . . . . Repair Stations . | . . . . . . . . . . . . . . Recycling Units . | . . . . . . . . . . . . . . Scanalyzers . | . . . . . . . . . . . . . . Garrison Access . | . . . . . . . . . . . . . . Data Cores Recovered 1 | . . . 1 . . . . . . . . . . Used 1 | . . . 1 . . . . . . . . . . Hacking Detections 22 | . 2 . 5 . . . 5 3 1 6 . . . Full Trace Events 9 | . . . 1 . . . 2 2 . 4 . . . Feedback Events 2 | . . . . . . . 2 . . . . . . Corruption 2 | . . . . . . . 2 . . . . . . Feedback Blocked . | . . . . . . . . . . . . . . Robot Schematics Acquired . | . . . . . . . . . . . . . . Robots Built . | . . . . . . . . . . . . . . Authchips . | . . . . . . . . . . . . . . Time . | . . . . . . . . . . . . . . Total Robot Build Rating . | . . . . . . . . . . . . . . Part Schematics Acquired 3 | . . . . . . . . . 1 . . . 2 Parts Built 4 | . . . . . . . . . . 4 . . . Authchips . | . . . . . . . . . . . . . . Time 159 | . . . . . . . . . . 159 . . . Total Part Build Rating 24 | . . . . . . . . . . 24 . . . Parts Repaired . | . . . . . . . . . . . . . . Time . | . . . . . . . . . . . . . . Parts Recycled . | . . . . . . . . . . . . . . Recycled Matter . | . . . . . . . . . . . . . . Retrieved Matter . | . . . . . . . . . . . . . . Retrieved Components . | . . . . . . . . . . . . . . Parts Scanalyzed 1 | . . . . . . . . . 1 . . . . Part Schematics Acquired 1 | . . . . . . . . . 1 . . . . Parts Damaged . | . . . . . . . . . . . . . . Bothacking | -11 -10 -10 -9 -9 -9 -8 -8 -8 -8 -7 -7 -7 -7 ------------ Run | Yrd Mat Min Mat Min Exi Min Mat Gar Mat Fac Low Low Zio Used RIF Installer . | . . . . . . . . . . . . . . Robots Hacked . | . . . . . . . . . . . . . . Non-combat . | . . . . . . . . . . . . . . Combat . | . . . . . . . . . . . . . . Robot Hacks Applied . | . . . . . . . . . . . . . . Relay Couplers Released 17 | . . . . . . . . 15 . 2 . . . Machine Destruction 17 | . . . . . . . . 15 . 2 . . . Fabnet Peak Effective % . | . . . . . . . . . . . . . . Robots Rewired 5 | . . . . . . . . 5 . . . . . Allies Hacked . | . . . . . . . . . . . . . . Hacks Repelled . | . . . . . . . . . . . . . . Allies | -11 -10 -10 -9 -9 -9 -8 -8 -8 -8 -7 -7 -7 -7 -------- Run | Yrd Mat Min Mat Min Exi Min Mat Gar Mat Fac Low Low Zio Total Allies 5 | . . . . . . . . 5 . . . . . Largest Group 3 | . . . . . . . . 3 . . . . . Highest-Rated Group 48 | . . . . . . . . 48 . . . . . Highest-Rated Ally 16 | . . . . . . . . 16 . . . . . Total Orders . | . . . . . . . . . . . . . . Ally Attacks 20 | . . . . . . . . 20 . . . . . Total Damage 262 | . . . . . . . . 262 . . . . . Kills . | . . . . . . . . . . . . . . Allies Corrupted . | . . . . . . . . . . . . . . Allies Melted . | . . . . . . . . . . . . . . Intel | -11 -10 -10 -9 -9 -9 -8 -8 -8 -8 -7 -7 -7 -7 ------- Run | Yrd Mat Min Mat Min Exi Min Mat Gar Mat Fac Low Low Zio Robot Analysis Total 5 | . 2 . 1 . . . 2 . . . . . . Derelict Logs Recovered 6 | . . . . 1 . . . . . . 1 2 2 Drone Launches . | . . . . . . . . . . . . . . Drone Recoveries . | . . . . . . . . . . . . . . Exploration | -11 -10 -10 -9 -9 -9 -8 -8 -8 -8 -7 -7 -7 -7 ------------- Run | Yrd Mat Min Mat Min Exi Min Mat Gar Mat Fac Low Low Zio Turns Passed 13175 | 93 1253 192 1900 103 457 272 438 1472 734 3481 864 565 1351 Spaces Moved 6601 | 52 656 121 966 57 221 158 142 696 389 1705 483 289 666 Core 11 | 4 . . . . . . . . . . . . 7 Treads 6590 | 48 656 121 966 57 221 158 142 696 389 1705 483 289 659 Legs . | . . . . . . . . . . . . . . Wheels . | . . . . . . . . . . . . . . Hover . | . . . . . . . . . . . . . . Flight . | . . . . . . . . . . . . . . Fastest Speed 50 | 50 160 160 160 160 160 160 160 160 158 161 167 170 50 Average Speed 163 | 151 160 160 160 160 160 160 160 162 159 165 168 170 171 Slowest Speed 330 | 160 240 160 240 160 160 160 160 240 232 167 170 170 330 Overloaded Moves . | . . . . . . . . . . . . . . Propulsion Burnouts . | . . . . . . . . . . . . . . Robots Hopped . | . . . . . . . . . . . . . . Cave-ins Triggered . | . . . . . . . . . . . . . . Exploration Rate (%) 53 | 5 93 60 94 16 60 53 15 80 34 46 61 54 81 Regions Visited 13 Branch Regions 7 Pre-discovered Areas 4 | . . . . 1 1 . . . . . 1 . 1 Known Exits Taken 3 | . . . 1 . . . 1 . . . . 1 . Unknown Exits Taken 9 | 1 1 1 . 1 1 1 . . 1 1 1 . . Scrap Searched 8 | . . . . . . 1 . . . . 1 3 3 Spaces Dug . | . . . . . . . . . . . . . . Terrain Destroyed 480 | . 5 . 66 . . . . 78 24 152 50 33 72 Melee . | . . . . . . . . . . . . . . Projectile 68 | . . . . . . . . 7 7 38 5 6 5 AOE 412 | . 5 . 66 . . . . 71 17 114 45 27 67 Terrain Rammed . | . . . . . . . . . . . . . . Walls Destroyed . | . . . . . . . . . . . . . . Machines Disabled . | . . . . . . . . . . . . . . Actions | -11 -10 -10 -9 -9 -9 -8 -8 -8 -8 -7 -7 -7 -7 --------- Run | Yrd Mat Min Mat Min Exi Min Mat Gar Mat Fac Low Low Zio Total 7992 | 63 771 120 1169 62 326 167 268 882 472 2087 511 323 771 Wait 446 | . 11 . 56 . 102 . 57 27 23 154 2 . 14 Move 6588 | 51 655 120 965 56 220 157 141 695 388 1704 482 288 666 Hop . | . . . . . . . . . . . . . . Pick Up 101 | 6 21 . 19 . 1 . 7 10 8 17 6 2 4 Fast Attach 50 | 6 9 . 4 . . 1 2 3 6 10 . 4 5 Attach 34 | . . . 4 . . . 4 5 1 6 3 2 9 Detach 6 | . 2 . . . . . . 1 1 . . . 2 Swap 75 | . 3 . 6 1 1 1 2 15 8 26 4 2 6 Drop 114 | . 17 . 21 1 2 2 6 13 17 24 2 5 4 Fire 551 | . 53 . 90 4 . 6 49 94 20 143 12 20 60 Melee . | . . . . . . . . . . . . . . Ram . | . . . . . . . . . . . . . . Kick . | . . . . . . . . . . . . . . Crush 7 | . . . 4 . . . . . . 3 . . . Escape Stasis . | . . . . . . . . . . . . . . Rewire 19 | . . . . . . . . 19 . . . . . Trap 1 | . . . . . . . . . . . . . 1 Miscellaneous . | . . . . . . . . . . . . . . Route ------- -11/Scrapyard -10/Materials (discovered 4 exits: *Mat x3 / [*Min]) -10/Mines -9/Materials (discovered 5 exits: *Mat x3 / *Min x2) -9/Mines -9/Exiles -8/Mines -8/Materials -8/Garrison (discovered 4 exits: *Mat x4) -8/Materials -7/Factory (discovered 3 exits: *Fac x2 / *Low) -7/Lower Caves -7/Lower Caves (discovered 2 exits: *Fac / *Zio) -7/Zion (discovered 2 exits: Dee / [*Pro]) History --------- Turn | Location | Event 40 | -11/Scrapyard | Discovered new exit (range 16) 94 | -11/Scrapyard | Entered Materials 312 | -10/Materials | Build established: Mutant 371 | -10/Materials | Central database locked down 499 | -10/Materials | Discovered new exit (range 5) 767 | -10/Materials | Discovered new exit (range 9) 965 | -10/Materials | Discovered new exit (range 3) 1161 | -10/Materials | Discovered new exit (range 12) 1347 | -10/Materials | Entered Mines 1523 | -10/Mines | Discovered new exit (range 7) 1539 | -10/Mines | Entered Materials 1539 | -9/Materials | Evolved 2 slots: Utility x2 1938 | -9/Materials | Discovered new exit (range 8) 2317 | -9/Materials | Discovered new exit (range 16) 2830 | -9/Materials | Discovered new exit (range 13) 2871 | -9/Materials | Discovered new exit (range 16) 2903 | -9/Materials | Build established: Scavenger-Mutant 3254 | -9/Materials | Identified exit to Mines 3439 | -9/Materials | Entered Mines 3481 | -9/Mines | Learned location of Zion (-7) 3534 | -9/Mines | Deemed a non-threat by the Exiles lab entrance 3535 | -9/Mines | Discovered new exit (range 5) 3542 | -9/Mines | Entered Exiles 3582 | -9/Exiles | Met 8R-AWN 3608 | -9/Exiles | Met EX-HEX 3654 | -9/Exiles | Met EX-BIN 3674 | -9/Exiles | Aligned with FarCom system 3675 | -9/Exiles | Given EX-Vault access code 3712 | -9/Exiles | Opened EX-Vault 3721 | -9/Exiles | Found Latent Energy Streamer 3757 | -9/Exiles | Warned to stay clear of 0b10 Research branches 3805 | -9/Exiles | Met EX-DEC 3873 | -9/Exiles | Discovered new exit (range 14) 3999 | -9/Exiles | Left Exiles lab with Latent Energy Streamer 3999 | -9/Exiles | Entered Mines 4086 | -8/Mines | Core integrity fell below 50% 4261 | -8/Mines | Discovered new exit (range 5) 4271 | -8/Mines | Entered Materials 4271 | -8/Materials | Evolved 2 slots: Propulsion x1, Utility x1 4532 | -8/Materials | Garrison activated, responded to threat 4654 | -8/Materials | Garrison activated, responded to threat 4708 | -8/Materials | Identified exit to Garrison 4709 | -8/Materials | Entered Garrison 4881 | -8/Garrison | Triggered checkpoint 4883 | -8/Garrison | Build established: Mutant 4905 | -8/Garrison | Garrison Relay disabled 5079 | -8/Garrison | Triggered checkpoint 5236 | -8/Garrison | Spotted B-75 Beast 5277 | -8/Garrison | Destroyed B-75 Beast 5395 | -8/Garrison | Discovered new exit (range 11) 5405 | -8/Garrison | Triggered checkpoint 5413 | -8/Garrison | Garrison Relay disabled 5417 | -8/Garrison | Build established: Scavenger-Mutant 5457 | -8/Garrison | Triggered checkpoint 5512 | -8/Garrison | Discovered new exit (range 5) 5635 | -8/Garrison | Triggered checkpoint 5665 | -8/Garrison | Triggered checkpoint 5786 | -8/Garrison | Discovered new exit (range 15) 5969 | -8/Garrison | Discovered new exit (range 8) 6003 | -8/Garrison | Triggered checkpoint 6018 | -8/Garrison | Garrison Relay disabled 6031 | -8/Garrison | Triggered checkpoint 6102 | -8/Garrison | Destroyed 9 combat bots 6181 | -8/Garrison | Entered Materials 6581 | -8/Materials | First assault squad dispatched 6721 | -8/Materials | Discovered new exit (range 4) 6915 | -8/Materials | Entered Factory 6915 | -7/Factory | Evolved 2 slots: Propulsion x1, Utility x1 6936 | -7/Factory | Build established: Mutant 7057 | -7/Factory | Fabricated Arm. Medium Treads (x2) 7411 | -7/Factory | Build established: Hacker-Mutant 8216 | -7/Factory | Garrison activated, responded to threat 8506 | -7/Factory | Build established: Mutant 8588 | -7/Factory | Fabricated Arm. Medium Treads (x2) 8622 | -7/Factory | Discovered new exit (range 9) 8642 | -7/Factory | Identified exit to Factory 8915 | -7/Factory | First assault squad dispatched 9666 | -7/Factory | Discovered exit to Factory (range 6) 9866 | -7/Factory | Garrison activated, responded to threat 9906 | -7/Factory | System corruption reached 10% 9942 | -7/Factory | Destroyed 11 combat bots 10218 | -7/Factory | Discovered new exit (range 14) 10276 | -7/Factory | Destroyed 8 combat bots 10351 | -7/Factory | Lost 4 parts (1n2u1w) 10396 | -7/Factory | Entered Lower Caves 10402 | -7/Lower Caves | Met a Warlord Commander 10403 | -7/Lower Caves | Learned location of Warlord (-4) 10404 | -7/Lower Caves | Warlord Commander delivered Encrypted Comm Array 10404 | -7/Lower Caves | Found Encrypted Comm Array 10475 | -7/Lower Caves | Encountered a Warlord checkpoint 10588 | -7/Lower Caves | Learned location of 1 exit from Factory 11140 | -7/Lower Caves | Discovered new exit (range 7) 11260 | -7/Lower Caves | Entered another Lower Caves area 11269 | -7/Lower Caves | Discovered exit to Factory (range 14) 11530 | -7/Lower Caves | Learned Factory machine intel 11584 | -7/Lower Caves | Encountered a Warlord checkpoint 11593 | -7/Lower Caves | Identified exit to Zion 11714 | -7/Lower Caves | Attracted the attention of an 0b10 checkpoint 11750 | -7/Lower Caves | Core integrity fell below 50% 11825 | -7/Lower Caves | Entered Zion 11930 | -7/Zion | System corruption cleaned by Quarantine Array 11961 | -7/Zion | Discovered new exit (range 13) 12386 | -7/Zion | Learned location of Armory (-4) 12425 | -7/Zion | Rebuked by Imprinter 12494 | -7/Zion | Learned Factory terminal intel 12715 | -7/Zion | Identified exit to Deep Caves 12807 | -7/Zion | Attacked by Zionites 12853 | -7/Zion | Destroyed Imprinter 13030 | -7/Zion | Lost 4 parts (1p1n2u) 13142 | -7/Zion | Core integrity fell below 20% 13176 | -7/Zion | Destroyed by P7-M4J(z) with Makeshift Spear Last Messages --------------- 13162_ Critical hit (Burn: +37). 13163_ Dropped Arm. Medium Treads. 13165_ Installed Fire Trap. 13166_ V1-7QP(z) heat spikes uncontrollably. 13166_ V1-7QP(z) overheating. 13169_ V1-7QP(z) heat spikes uncontrollably. 13169_ DI-VU7(z) triggered Fire Trap. 13169_ Burning plasma bursts from the floor. 13169_ DI-VU7(z) destroyed. 13169_ V1-7QP(z) overheating. 13171_ Acquired 16 matter. 13171_ V1-7QP(z) overheating. 13172_ Hvy. Rocket Launcher destroyed. 13172_ V1-7QP(z) overheating. 13174_ V1-7QP(z) heat damages Com. Matter Pod, Unknown Device, Mak. Leg, Mak. Power Source. 13174_ Cooling System destroyed. 13174_ V1-7QP(z) overheating. 13175_ Critical hit (Impale). 13176_ V1-7QP(z) heat damages Mak. Laser. Map ----- +----------------------------------------------------+ | ???????????????????????????#########"##??????????? | | ??????????????####?????????#"##""""#""#??????????? | | ???????????####""##??????###""""&" """##"??????##" | | ??????????##""""""######?#""" " & """"##????##"" | | ??????#####""""""""""""####" "" """"#??###""" | | ??????#"#"""" """""""#""" "" ""#???#""" | | ?????##""""" "##""" "#????#" | | ######"#"" "##"" "#????"" | | #""##"#"" "" ""#"" ##????#""" | | """"##"" """"" """"" "" ""##?????#""" | | "" ""##" """"" ""#""" """ ""###????##"" | | """"" """" ""###" """" """#???##"" | | """ """" ""##" """""" ""#####""" | | "#"" """"" "#"""" """""#"""" | | """ """"" "" " " " "##"" | | "" z """" # ###" | | "" " "" " "#"""" | | "" """ "" " | "#""""" | | """ "" " * = "#""" | | "" """ " """ | | """ | | " [/ [ | | =* = * | | "" = !! = "#"""#""%##"% "" | | "" =/! zzz= """"""""""""" "" | | """ = ]@! "#"##""""""""""#" | | """ = ### ########"##""### | | #""" z # ####?###??????############ | | #"""" # #???????????????????????# | | ##""" # ##???????????????????????# | | ?#""" #????????????????????????# | | ?##" ????????????????????????# | | ??#"" ????????????????????????? | | ####" #???????????????????????? | | "##"" """ ???????????????????????? | | "#"""" """ =% ??????????????????????## | | """""" """" * ##?????????????????????#" | | """"" ??????????????????????## | | "#""" #??????????????????????#" | | """ "#"??" "" #?????????????????????### | | #"" "" ""##?? """?????????????????????????#"" | | #"" """ """""????????????????????????????????##" | | #"" """ """""????????????????????????????????#" | | #"" "#????????????????????????????????##" | | #"" "#????????????????????????????????#"" | | #" """#????????????????????????????????##" | | #" """"#????????????????????????????????### | | """ """"#????????????????????????????????#"" | | #"" """""???????????????????????????????#"" | | #" """ ? ? ???????????????????????????##" | +----------------------------------------------------+ Best States ------------- Heat Dissipation 70 Energy Generation 18 Energy Capacity 290 Matter Stores 300 Matter Capacity 300 Sight Range 16 Robot Scan Range 14 Terrain Scan Density 10 Armor Coverage 750 Resistance: KI 30 Weapon Shielding 33 Evasion (%) 40 Targeting Accuracy 8 Recoil Reduction 4 Offensive Hacking 10 Defensive Hacking 10 Item Schematics ----------------- Arm. Medium Treads | -8/Materials | Scanalyzed Slug Cannon | -7/Zion | Free Ripper | -7/Zion | Free Robot Schematics ------------------ None Fabricated ------------ Arm. Medium Treads | x2 | -7/Factory Arm. Medium Treads | x2 | -7/Factory Alien Tech Used ----------------- None Achievements -------------- Monster Challenges ------------ None Game ------ Seed AntimissileBehemothBarrier Manual? 0 Play Time 01:10:34 Cumulative 134.8 hours Start 2024.12.05 @ 18:15:24 End 2024.12.05 @ 19:24:04 Sessions 1 Manual Loads 0 Difficulty Rogue Special Mode None Game No. 163 Rogue 163 Adventurer 0 Explorer 0 Win Type - Total 2 Types 2/0/0/0/0/0/0/0/0 Lore% 66 Gallery% 57 Achievement% 48 Wizard Run 0 Options --------- Layout 1 ASCII 0 Keyboard 1 Movement Numpad Keybinds 0 Fullscreen 1 Font 24/Smallcaps Map View 50x35 Zoom Use 0% Tactical HUD 1 Map Filters NONE Filters NONE Steam 1 RUN: c903d7c4-2d90-4d68-a608-6f84b2eded8f